lending/lending_fUSD_20240710
["ID","MTS","AMOUNT","RATE_DAILY","PERIOD"]
[331640377,1720599066707,-103.90339384,0.00013808,2]
[331640378,1720599066717,-336.44852456,0.00013808,2]
[331640379,1720599066728,-163.55147544,0.00013808,2]
[331640380,1720599066737,-940.78198611,0.00013808,2]
[331640381,1720599066754,-398.54482462,0.00013808,2]
[331640382,1720599066765,-508.85318927,0.00013808,2]
[331640383,1720599066774,-500.0,0.00013808,2]
[331640384,1720599066784,-1097.95764417,0.00013808,2]
[331640385,1720599066803,-211.32235583,0.00013808,2]
[331640386,1720599066812,-712.81151637,0.00013808,2]
[331640387,1720599066830,-366.61848363,0.00013808,2]
[331640388,1720599066839,-500.0,0.00013808,2]
[331640389,1720599066848,-560.42,0.00013808,2]
[331640390,1720599066857,-831.76,0.00013808,2]
[331640391,1720599066867,-500.0,0.00013808,2]
[331640392,1720599066876,-500.0,0.00013808,2]
[331640393,1720599066885,-1270.27,0.00013808,2]
[331640394,1720599066893,-500.0,0.00013808,2]
[331640395,1720599066902,-1193.86,0.00013808,2]
[331640396,1720599066911,-500.0,0.00013808,2]
[331640397,1720599066920,-1130.07,0.00013808,2]
[331640398,1720599066929,-500.0,0.00013808,2]
[331640399,1720599066938,-637.83,0.00013808,2]
[331640400,1720599066947,-500.0,0.00013808,2]
[331640401,1720599066956,-1182.09,0.00013808,2]
[331640402,1720599066965,-1045.28,0.00013808,2]
[331640403,1720599066974,-500.0,0.00013808,2]
[331640404,1720599066983,-565.92,0.00013808,2]
[331640405,1720599066992,-500.0,0.00013808,2]
[331640406,1720599067000,-500.0,0.00013808,2]
[331640407,1720599067010,-500.0,0.00013808,2]
[331640408,1720599067019,-525.05,0.00013808,2]
[331640409,1720599067028,-800.08,0.00013808,2]
[331640410,1720599067037,-2179.63,0.00013808,2]
[331640411,1720599067046,-925.26,0.00013808,2]
[331640412,1720599067055,-1454.56,0.00013808,2]
[331640413,1720599067065,-500.0,0.00013808,2]
[331640414,1720599067078,-500.0,0.00013808,2]
[331640415,1720599067087,-500.0,0.00013808,2]
[331640416,1720599067095,-619.42,0.00013808,2]
[331640417,1720599067105,-1279.46,0.00013808,2]
[331640418,1720599067114,-500.0,0.00013808,2]
[331640419,1720599067123,-500.0,0.00013808,2]
[331640420,1720599067133,-2147.65,0.00013808,2]
[331640421,1720599067142,-1536.32,0.00013808,2]
[331640422,1720599067152,-1364.14,0.00013808,2]
[331640423,1720599067161,-500.0,0.00013808,2]
[331640424,1720599067170,-946.17,0.00013808,2]
[331640425,1720599067179,-1442.46,0.00013808,2]
[331640426,1720599067188,-500.0,0.00013808,2]
[331640427,1720599067197,-584.96,0.00013808,2]
[331640428,1720599067206,-500.0,0.00013808,2]
[331640429,1720599067216,-1132.79,0.00013808,2]
[331640430,1720599067225,-549.41,0.00013808,2]
[331640431,1720599067234,-1603.67,0.00013808,2]
[331640432,1720599067244,-645.66,0.00013808,2]
[331640433,1720599067253,-500.0,0.00013808,2]
[331640434,1720599067263,-500.0,0.00013808,2]
[331640435,1720599067272,-886.67,0.00013808,2]
[331640436,1720599067282,-886.67,0.00013808,2]
[331640437,1720599067291,-993.34,0.00013808,2]
[331640438,1720599067300,-500.0,0.00013808,2]
[331640439,1720599067310,-500.0,0.00013808,2]
[331640440,1720599067319,-1546.4,0.00013808,2]
[331640441,1720599067331,-709.43,0.00013808,2]
[331640442,1720599067340,-500.0,0.00013808,2]
[331640443,1720599067349,-2213.4,0.00013808,2]
[331640444,1720599067358,-798.41,0.00013808,2]
[331640445,1720599067369,-500.0,0.00013808,2]
[331640446,1720599067379,-772.63,0.00013808,2]
[331640447,1720599067389,-500.0,0.00013808,2]
[331640448,1720599067398,-500.0,0.00013808,2]
[331640449,1720599067407,-907.62,0.00013808,2]
[331640450,1720599067538,-500.0,0.00013808,2]
[331640451,1720599067558,-1795.22,0.00013808,2]
[331640452,1720599067568,-1061.37,0.00013808,2]
[331640453,1720599067580,-748.98,0.00013808,2]
[331640454,1720599067589,-500.0,0.00013808,2]
[331640455,1720599067606,-500.0,0.00013808,2]
[331640456,1720599067619,-1003.48,0.00013808,2]
[331640457,1720599067629,-674.33,0.00013808,2]
[331640458,1720599067639,-500.0,0.00013808,2]
[331640459,1720599067649,-500.0,0.00013808,2]
[331640460,1720599067659,-531.15,0.00013808,2]
[331640461,1720599067669,-500.0,0.00013808,2]
[331640462,1720599067679,-949.97,0.00013808,2]
[331640463,1720599067689,-500.0,0.00013808,2]
[331640464,1720599067699,-500.0,0.00013808,2]
[331640465,1720599067709,-500.0,0.00013808,2]
[331640466,1720599067719,-1031.46,0.00013808,2]
[331640467,1720599067730,-535.97,0.00013808,2]
[331640468,1720599067740,-1551.25,0.00013808,2]
[331640469,1720599067750,-2009.57,0.00013808,2]
[331640470,1720599067760,-8063.73,0.00013808,2]
[331640471,1720599067771,-1172.06,0.00013808,2]
[331640472,1720599067781,-500.0,0.00013808,2]
[331640473,1720599067792,-957.9,0.00013808,2]
[331640474,1720599067802,-500.0,0.00013808,2]
[331640475,1720599067813,-500.0,0.00013808,2]
[331640476,1720599067825,-500.0,0.00013808,2]
[331640477,1720599067835,-684.27,0.00013808,2]
[331640478,1720599067844,-500.0,0.00013808,2]
[331640479,1720599067854,-651.64,0.00013808,2]
[331640480,1720599067864,-1261.76,0.00013808,2]
[331640481,1720599067875,-1965.46,0.00013808,2]
[331640482,1720599067885,-500.0,0.00013808,2]
[331640483,1720599067895,-898.83,0.00013808,2]
[331640484,1720599067905,-359.97845897,0.00013808,2]
[331640485,1720599067914,-776.14,0.00013808,2]
[331640486,1720599067926,-500.0,0.00013808,2]
[331640487,1720599067936,-922.72,0.00013808,2]
[331640488,1720599067945,-500.0,0.00013808,2]
[331640489,1720599067955,-500.0,0.00013808,2]
[331640490,1720599067965,-539.56,0.00013808,2]
[331640491,1720599067975,-500.0,0.00013808,2]
[331640492,1720599067984,-1390.04,0.00013808,2]
[331640493,1720599067994,-1261.08,0.00013808,2]
[331640494,1720599068003,-2063.91,0.00013808,2]
[331640495,1720599068013,-500.0,0.00013808,2]
[331640496,1720599068023,-1691.19,0.00013808,2]
[331640497,1720599068032,-595.62,0.00013808,2]
[331640498,1720599068042,-500.0,0.00013808,2]
[331640499,1720599068056,-500.0,0.00013808,2]
[331640500,1720599068067,-1168.83,0.00013808,2]
[331640501,1720599068079,-500.0,0.00013808,2]
[331640502,1720599068090,-500.0,0.00013808,2]
[331640503,1720599068100,-1211.99,0.00013808,2]
[331640504,1720599068111,-2001.25,0.00013808,2]
[331640505,1720599068121,-704.07,0.00013808,2]
[331640506,1720599068132,-7594.21,0.00013808,2]
[331640507,1720599068142,-500.0,0.00013808,2]
[331640508,1720599068153,-500.0,0.00013808,2]
[331640509,1720599068163,-500.0,0.00013808,2]
[331640510,1720599068174,-739.38,0.00013808,2]
[331640511,1720599068185,-520.82,0.00013808,2]
[331640512,1720599068195,-500.0,0.00013808,2]
[331640513,1720599068205,-1451.03,0.00013808,2]
[331640514,1720599068216,-500.0,0.00013808,2]
[331640515,1720599068226,-1390.38,0.00013808,2]
[331640516,1720599068236,-500.0,0.00013808,2]
[331640517,1720599068247,-571.76,0.00013808,2]
[331640518,1720599068257,-500.0,0.00013808,2]
[331640519,1720599068267,-527.86,0.00013808,2]
[331640520,1720599068277,-500.0,0.00013808,2]
[331640521,1720599068288,-1672.16,0.00013808,2]
[331640522,1720599068298,-2979.14,0.00013808,2]
[331640523,1720599068308,-775.37,0.00013808,2]
[331640524,1720599068318,-641.26,0.00013808,2]
[331640525,1720599068332,-500.0,0.00013808,2]
[331640526,1720599068343,-542.11,0.00013808,2]
[331640527,1720599068353,-500.0,0.00013808,2]
[331640528,1720599068364,-665.69,0.00013808,2]
[331640529,1720599068375,-1256.31,0.00013808,2]
[331640530,1720599068385,-551.13,0.00013808,2]
[331640531,1720599068396,-151.0,0.00013808,2]
[331640532,1720599068406,-151.0,0.00013808,2]
[331640533,1720599068416,-500.0,0.00013808,2]
[331640534,1720599068426,-878.48,0.00013808,2]
[331640535,1720599068436,-500.0,0.00013808,2]
[331640536,1720599068446,-494.31208324,0.00013808,2]
[331640537,1720599068456,-682.43,0.00013808,2]
[331640538,1720599068466,-500.0,0.00013808,2]
[331640539,1720599068476,-3981.22,0.00013808,2]
[331640540,1720599068486,-1336.43,0.00013808,2]
[331640541,1720599068500,-604.92,0.00013808,2]
[331640542,1720599068512,-500.0,0.00013808,2]
[331640543,1720599068523,-662.54,0.00013808,2]
[331640544,1720599068534,-500.0,0.00013808,2]
[331640545,1720599068544,-1827.92,0.00013808,2]
[331640546,1720599068555,-953.72,0.00013808,2]
[331640547,1720599068565,-2531.12,0.00013808,2]
[331640548,1720599068577,-831.35,0.00013808,2]
[331640549,1720599068588,-524.08,0.00013808,2]
[331640550,1720599068599,-500.0,0.00013808,2]
[331640551,1720599068610,-1097.86,0.00013808,2]
[331640552,1720599068621,-721.73,0.00013808,2]
[331640553,1720599068631,-1613.86,0.00013808,2]
[331640554,1720599068642,-500.0,0.00013808,2]
[331640555,1720599068652,-1530.39,0.00013808,2]
[331640556,1720599068663,-2252.59,0.00013808,2]
[331640557,1720599068673,-1003.31,0.00013808,2]
[331640558,1720599068684,-500.0,0.00013808,2]
[331640559,1720599068695,-842.22,0.00013808,2]
[331640560,1720599068705,-509.24,0.00013808,2]
[331640561,1720599068715,-552.97,0.00013808,2]
[331640562,1720599068725,-1134.84,0.00013808,2]
[331640563,1720599068736,-500.0,0.00013808,2]
[331640564,1720599068747,-707.08,0.00013808,2]
[331640565,1720599068757,-1100.8,0.00013808,2]
[331640566,1720599068767,-1455.23,0.00013808,2]
[331640567,1720599068782,-1224.68,0.00013808,2]
[331640568,1720599068792,-500.0,0.00013808,2]
[331640569,1720599068803,-500.0,0.00013808,2]
[331640570,1720599068815,-500.0,0.00013808,2]
[331640571,1720599068828,-500.0,0.00013808,2]
[331640572,1720599068839,-970.85,0.00013808,2]
[331640573,1720599068849,-864.35,0.00013808,2]
[331640574,1720599068860,-500.0,0.00013808,2]
[331640575,1720599068870,-500.0,0.00013808,2]
[331640576,1720599068881,-727.67,0.00013808,2]
[331640577,1720599068892,-500.0,0.00013808,2]
[331640578,1720599068903,-3454.66,0.00013808,2]
[331640579,1720599068914,-1558.68,0.00013808,2]
[331640580,1720599068924,-500.0,0.00013808,2]
[331640581,1720599068934,-500.0,0.00013808,2]
[331640582,1720599068944,-1081.61,0.00013808,2]
[331640583,1720599068955,-500.0,0.00013808,2]
[331640584,1720599068965,-824.12,0.00013808,2]
[331640585,1720599068975,-500.0,0.00013808,2]
[331640586,1720599068985,-1320.77,0.00013808,2]
[331640587,1720599068996,-500.0,0.00013808,2]
[331640588,1720599069006,-1608.57,0.00013808,2]
[331640589,1720599069016,-500.0,0.00013808,2]
[331640590,1720599069026,-541.93,0.00013808,2]
[331640591,1720599069036,-834.91,0.00013808,2]
[331640592,1720599069049,-787.39,0.00013808,2]
[331640593,1720599069059,-575.26,0.00013808,2]
[331640594,1720599069069,-791.15,0.00013808,2]
[331640595,1720599069082,-311.2,0.00013808,2]
[331640596,1720599069092,-500.0,0.00013808,2]
[331640597,1720599069103,-500.0,0.00013808,2]
[331640598,1720599069113,-500.0,0.00013808,2]
[331640599,1720599069127,-662.24,0.00013808,2]
[331640600,1720599069137,-2495.06,0.00013808,2]
[331640601,1720599069148,-500.0,0.00013808,2]
[331640602,1720599069158,-500.0,0.00013808,2]
[331640603,1720599069169,-1021.29,0.00013808,2]
[331640604,1720599069180,-500.0,0.00013808,2]
[331640605,1720599069190,-1369.65,0.00013808,2]
[331640606,1720599069202,-624.67,0.00013808,2]
[331640607,1720599069212,-775.81,0.00013808,2]
[331640608,1720599069223,-855.1,0.00013808,2]
[331640609,1720599069233,-500.0,0.00013808,2]
[331640610,1720599069244,-1858.0,0.00013808,2]
[331640611,1720599069254,-150.0,0.00013812,2]
[331640612,1720599069264,-150.0,0.00013814,2]
[331640613,1720599069274,-618.218943,0.00013814,2]
[331640614,1720599069284,-682.794927,0.00013814,2]
[331640615,1720599069294,-1661.212116,0.00013814,2]
[331640616,1720599069304,-1754.873188,0.00013814,2]
[331640617,1720599069315,-1217.863689,0.00013814,2]
[331640618,1720599069327,-1606.120045,0.00013814,2]
[331640619,1720599069338,-302.903029,0.00013814,2]
[331640620,1720599069348,-1299.806438,0.00013814,2]
[331640621,1720599069358,-2439.315983,0.00013814,2]
[331640622,1720599069370,-2331.036355,0.00013814,2]
[331640623,1720599069380,-871.195462,0.00013814,2]
[331640624,1720599069391,-274.393172,0.00013814,2]
[331640625,1720599069402,-2439.315983,0.00013814,2]
[331640626,1720599069411,-1142.81673,0.00013814,2]
[331640627,1720599069422,-3631.511541,0.00013814,2]
[331640628,1720599069432,-285.704183,0.00013814,2]
[331640629,1720599069442,-1033.431014,0.00013814,2]
[331640630,1720599069452,-1312.482194,0.00013814,2]
[331640631,1720599069462,-202.813332,0.00013814,2]
[331640632,1720599069472,-236.166992,0.00013814,2]
[331640633,1720599069482,-195.145279,0.00013814,2]
[331640634,1720599069493,-615.771779,0.00013814,2]
[331640635,1720599069503,-160.4114324,0.00013815,2]
[331640636,1720599069515,-151.0,0.00013815,2]
[331640637,1720599069526,-160.4114324,0.00013827,2]
[331640638,1720599069536,-2000.0,0.00013835,2]
[331640639,1720599069546,-200.0,0.00013835,2]
[331640640,1720599069556,-2000.0,0.00013835,2]
[331640641,1720599069566,-200.0,0.00013835,2]
[331640642,1720599069576,-150.0,0.00013836,2]
[331640643,1720599069587,-160.4114324,0.0001384,2]
[331640644,1720599069597,-150.0,0.0001384,2]
[331640645,1720599069615,-720.44278656,0.00013849,2]
[331640646,1720599069627,-160.4114324,0.00013853,2]
[331640647,1720599069638,-150.0,0.00013858,2]
[331640648,1720599069648,-11690.20643781,0.0001386,2]
[331640649,1720599069658,-300.0,0.00013862,2]
[331640650,1720599069670,-300.0,0.00013862,2]
[331640651,1720599069680,-300.0,0.00013862,2]
[331640652,1720599069690,-500.0,0.00013863,2]
[331640653,1720599069700,-768.06,0.00013863,2]
[331640654,1720599069710,-798.28,0.00013863,2]
[331640655,1720599069720,-869.12,0.00013863,2]
[331640656,1720599069730,-922.42,0.00013863,2]
[331640657,1720599069739,-500.0,0.00013863,2]
[331640658,1720599069749,-500.0,0.00013863,2]
[331640659,1720599069759,-562.96,0.00013863,2]
[331640660,1720599069769,-1185.66,0.00013863,2]
[331640661,1720599069779,-500.0,0.00013863,2]
[331640662,1720599069789,-965.26,0.00013863,2]
[331640663,1720599069799,-500.0,0.00013863,2]
[331640664,1720599069809,-500.0,0.00013863,2]
[331640665,1720599069819,-858.77,0.00013863,2]
[331640666,1720599069830,-829.04,0.00013863,2]
[331640667,1720599069839,-500.0,0.00013863,2]
[331640668,1720599069849,-1107.31,0.00013863,2]
[331640669,1720599069859,-540.25,0.00013863,2]
[331640670,1720599070385,-500.0,0.00013863,2]
[331640671,1720599070395,-966.7,0.00013863,2]
[331640672,1720599070404,-500.0,0.00013863,2]
[331640673,1720599070414,-500.0,0.00013863,2]
[331640674,1720599070423,-685.53,0.00013863,2]
[331640675,1720599070432,-949.59,0.00013863,2]
[331640676,1720599070441,-627.98,0.00013863,2]
[331640677,1720599070450,-921.07,0.00013863,2]
[331640678,1720599070459,-501.9,0.00013863,2]
[331640679,1720599070468,-500.0,0.00013863,2]
[331640680,1720599070478,-500.0,0.00013863,2]
[331640681,1720599070487,-500.0,0.00013863,2]
[331640682,1720599070496,-935.29,0.00013863,2]
[331640683,1720599070506,-500.0,0.00013863,2]
[331640684,1720599070519,-500.0,0.00013863,2]
[331640685,1720599070530,-500.0,0.00013863,2]
[331640686,1720599070539,-500.0,0.00013863,2]
[331640687,1720599070549,-500.0,0.00013863,2]
[331640688,1720599070560,-521.3,0.00013863,2]
[331640689,1720599070569,-691.09,0.00013863,2]
[331640690,1720599070581,-500.0,0.00013863,2]
[331640691,1720599070590,-500.0,0.00013863,2]
[331640692,1720599070600,-1037.99,0.00013863,2]
[331640693,1720599070610,-500.0,0.00013863,2]
[331640694,1720599070619,-500.0,0.00013863,2]
[331640695,1720599070629,-818.8,0.00013863,2]
[331640696,1720599070639,-500.0,0.00013863,2]
[331640697,1720599070649,-500.0,0.00013863,2]
[331640698,1720599070660,-500.0,0.00013863,2]
[331640699,1720599070671,-462.53854906,0.00013863,2]
[331640700,1720599071269,-522.26145094,0.00013863,2]
[331640701,1720599071279,-500.0,0.00013863,2]
[331640702,1720599071288,-500.0,0.00013863,2]
[331640703,1720599071297,-510.14,0.00013863,2]
[331640704,1720599071306,-500.0,0.00013863,2]
[331640705,1720599071316,-543.34,0.00013863,2]
[331640706,1720599071325,-1241.53,0.00013863,2]
[331640707,1720599071334,-500.0,0.00013863,2]
[331640708,1720599071343,-500.0,0.00013863,2]
[331640709,1720599071352,-876.93,0.00013863,2]
[331640710,1720599071361,-500.0,0.00013863,2]
[331640711,1720599071373,-1253.7,0.00013863,2]
[331640712,1720599071382,-568.22,0.00013863,2]
[331640713,1720599071392,-722.25,0.00013863,2]
[331640714,1720599071401,-500.0,0.00013863,2]
[331640715,1720599071410,-500.0,0.00013863,2]
[331640716,1720599071422,-99.57208155,0.00013863,2]
[331640717,1720599071434,-400.42791845,0.00013863,2]
[331640718,1720599071443,-500.0,0.00013863,2]
[331640719,1720599071453,-500.0,0.00013863,2]
[331640720,1720599071462,-905.58,0.00013863,2]
[331640721,1720599071471,-876.49,0.00013863,2]
[331640722,1720599071480,-808.15,0.00013863,2]
[331640723,1720599071490,-500.0,0.00013863,2]
[331640724,1720599071500,-500.0,0.00013863,2]
[331640725,1720599071510,-500.0,0.00013863,2]
[331640726,1720599071520,-500.0,0.00013863,2]
[331640727,1720599071530,-500.0,0.00013863,2]
[331640728,1720599071539,-756.96,0.00013863,2]
[331640729,1720599071549,-1187.48,0.00013863,2]
[331640730,1720599071558,-500.0,0.00013863,2]
[331640731,1720599071567,-500.0,0.00013863,2]
[331640732,1720599071577,-563.72,0.00013863,2]
[331640733,1720599071587,-500.0,0.00013863,2]
[331640734,1720599071596,-506.29,0.00013863,2]
[331640735,1720599071605,-933.88,0.00013863,2]
[331640736,1720599071614,-500.0,0.00013863,2]
[331640737,1720599071624,-500.0,0.00013863,2]
[331640738,1720599071633,-500.0,0.00013863,2]
[331640739,1720599071643,-500.0,0.00013863,2]
[331640740,1720599071652,-500.0,0.00013863,2]
[331640741,1720599071661,-500.0,0.00013863,2]
[331640742,1720599071671,-500.0,0.00013863,2]
[331640743,1720599071680,-500.0,0.00013863,2]
[331640744,1720599071689,-748.65,0.00013863,2]
[331640745,1720599071699,-500.0,0.00013863,2]
[331640746,1720599071708,-1549.4,0.00013863,2]
[331640747,1720599071717,-500.0,0.00013863,2]
[331640748,1720599071726,-500.0,0.00013863,2]
[331640749,1720599071736,-500.0,0.00013863,2]
[331640750,1720599071746,-500.0,0.00013863,2]
[331640751,1720599071756,-676.75,0.00013863,2]
[331640752,1720599071767,-500.0,0.00013863,2]
[331640753,1720599071776,-500.0,0.00013863,2]
[331640754,1720599071787,-500.0,0.00013863,2]
[331640755,1720599071798,-500.0,0.00013863,2]
[331640756,1720599071807,-837.11,0.00013863,2]
[331640757,1720599071817,-500.0,0.00013863,2]
[331640758,1720599071828,-500.0,0.00013863,2]
[331640759,1720599071837,-665.31,0.00013863,2]
[331640760,1720599071847,-500.0,0.00013863,2]
[331640761,1720599071856,-555.21,0.00013863,2]
[331640762,1720599071866,-500.0,0.00013863,2]
[331640763,1720599071875,-1003.06,0.00013863,2]
[331640764,1720599071884,-540.12,0.00013863,2]
[331640765,1720599071893,-626.76,0.00013863,2]
[331640766,1720599071903,-522.85,0.00013863,2]
[331640767,1720599071912,-500.0,0.00013863,2]
[331640768,1720599071921,-578.65,0.00013863,2]
[331640769,1720599071931,-500.0,0.00013863,2]
[331640770,1720599071940,-1672.93,0.00013863,2]
[331640771,1720599071949,-500.0,0.00013863,2]
[331640772,1720599071959,-885.29,0.00013863,2]
[331640773,1720599071969,-1156.41,0.00013863,2]
[331640774,1720599071978,-500.0,0.00013863,2]
[331640775,1720599071988,-500.0,0.00013863,2]
[331640776,1720599071997,-500.0,0.00013863,2]
[331640777,1720599072006,-500.0,0.00013863,2]
[331640778,1720599072016,-500.0,0.00013863,2]
[331640779,1720599072025,-500.0,0.00013863,2]
[331640780,1720599072034,-500.0,0.00013863,2]
[331640781,1720599072044,-644.61,0.00013863,2]
[331640782,1720599072053,-500.0,0.00013863,2]
[331640783,1720599072062,-500.0,0.00013863,2]
[331640784,1720599072071,-500.0,0.00013863,2]
[331640785,1720599072082,-500.0,0.00013863,2]
[331640786,1720599072091,-1492.93,0.00013863,2]
[331640787,1720599072100,-500.0,0.00013863,2]
[331640788,1720599072110,-779.24,0.00013863,2]
[331640789,1720599072119,-500.0,0.00013863,2]
[331640790,1720599072128,-500.0,0.00013863,2]
[331640791,1720599072138,-500.0,0.00013863,2]
[331640792,1720599072147,-579.08,0.00013863,2]
[331640793,1720599072156,-500.0,0.00013863,2]
[331640794,1720599072165,-500.0,0.00013863,2]
[331640795,1720599072175,-995.91,0.00013863,2]
[331640796,1720599072184,-621.14,0.00013863,2]
[331640797,1720599072193,-500.0,0.00013863,2]
[331640798,1720599072202,-500.0,0.00013863,2]
[331640799,1720599072211,-530.61,0.00013863,2]
[331640800,1720599072221,-500.0,0.00013863,2]
[331640801,1720599072230,-500.0,0.00013863,2]
[331640802,1720599072239,-552.21,0.00013863,2]
[331640803,1720599072248,-500.0,0.00013863,2]
[331640804,1720599072257,-989.36,0.00013863,2]
[331640805,1720599072266,-856.73,0.00013863,2]
[331640806,1720599072276,-746.97,0.00013863,2]
[331640807,1720599072285,-525.1,0.00013863,2]
[331640808,1720599072295,-500.0,0.00013863,2]
[331640809,1720599072304,-1114.99,0.00013863,2]
[331640810,1720599072314,-500.0,0.00013863,2]
[331640811,1720599072323,-500.0,0.00013863,2]
[331640812,1720599072335,-1204.3,0.00013863,2]
[331640813,1720599072344,-500.0,0.00013863,2]
[331640814,1720599072359,-500.0,0.00013863,2]
[331640815,1720599072371,-1056.43,0.00013863,2]
[331640816,1720599072380,-500.0,0.00013863,2]
[331640817,1720599072390,-500.0,0.00013863,2]
[331640818,1720599072399,-500.0,0.00013863,2]
[331640819,1720599072408,-500.0,0.00013863,2]
[331640820,1720599072418,-1568.94,0.00013863,2]
[331640821,1720599072428,-614.53,0.00013863,2]
[331640822,1720599072437,-1053.28,0.00013863,2]
[331640823,1720599072446,-631.47,0.00013863,2]
[331640824,1720599072455,-935.57,0.00013863,2]
[331640825,1720599072465,-555.99,0.00013863,2]
[331640826,1720599072474,-500.0,0.00013863,2]
[331640827,1720599072483,-906.8,0.00013863,2]
[331640828,1720599072493,-957.98,0.00013863,2]
[331640829,1720599072503,-684.18,0.00013863,2]
[331640830,1720599072514,-1348.78,0.00013863,2]
[331640831,1720599072524,-500.0,0.00013863,2]
[331640832,1720599072534,-684.12,0.00013863,2]
[331640833,1720599072544,-500.0,0.00013863,2]
[331640834,1720599072554,-500.0,0.00013863,2]
[331640835,1720599072564,-950.63,0.00013863,2]
[331640836,1720599072574,-500.0,0.00013863,2]
[331640837,1720599072584,-500.0,0.00013863,2]
[331640838,1720599072593,-821.56,0.00013863,2]
[331640839,1720599072602,-682.88,0.00013863,2]
[331640840,1720599072616,-731.7,0.00013863,2]
[331640841,1720599072626,-500.0,0.00013863,2]
[331640842,1720599072635,-500.0,0.00013863,2]
[331640843,1720599072644,-510.48,0.00013863,2]
[331640844,1720599072654,-528.99,0.00013863,2]
[331640845,1720599072664,-1584.03,0.00013863,2]
[331640846,1720599072673,-805.84,0.00013863,2]
[331640847,1720599072683,-885.9,0.00013863,2]
[331640848,1720599072693,-500.0,0.00013863,2]
[331640849,1720599072703,-735.57,0.00013863,2]
[331640850,1720599072713,-500.0,0.00013863,2]
[331640851,1720599072722,-500.0,0.00013863,2]
[331640852,1720599072732,-500.0,0.00013863,2]
[331640853,1720599072742,-500.0,0.00013863,2]
[331640854,1720599072751,-500.0,0.00013863,2]
[331640855,1720599072761,-500.0,0.00013863,2]
[331640856,1720599072770,-500.0,0.00013863,2]
[331640857,1720599072780,-1067.53,0.00013863,2]
[331640858,1720599072790,-500.0,0.00013863,2]
[331640859,1720599072799,-500.0,0.00013863,2]
[331640860,1720599072809,-1209.03,0.00013863,2]
[331640861,1720599072818,-1237.1,0.00013863,2]
[331640862,1720599072828,-500.0,0.00013863,2]
[331640863,1720599072838,-500.0,0.00013863,2]
[331640864,1720599072846,-500.0,0.00013863,2]
[331640865,1720599072855,-500.0,0.00013863,2]
[331640866,1720599072864,-500.0,0.00013863,2]
[331640867,1720599072874,-858.33,0.00013863,2]
[331640868,1720599072883,-500.0,0.00013863,2]
[331640869,1720599072892,-500.0,0.00013863,2]
[331640870,1720599072902,-845.17,0.00013863,2]
[331640871,1720599072910,-522.43,0.00013863,2]
[331640872,1720599072920,-500.0,0.00013863,2]
[331640873,1720599072928,-500.0,0.00013863,2]
[331640874,1720599072938,-170.26,0.00013863,2]
[331640875,1720599072947,-500.0,0.00013863,2]
[331640876,1720599072956,-1171.79,0.00013863,2]